bitfinex-derivatives/quotes_SOLF0:USTF0_20241203
["timestamp","ask_amount","ask_price","bid_price","bid_amount"]
[1733190597273,2.2,225.71,225.5,14.66250217]
[1733190597563,2.2153,225.66,225.6,6.64761952]
[1733190597770,2.2,225.65,225.6,6.64761952]
[1733190597969,2.2,225.64,225.6,6.64761952]
[1733190599965,2.40393,225.72,225.62,6.64761952]
[1733190600168,2.2,225.69,225.56,2.2]
[1733190600364,2.2,225.69,225.67,6.64761952]
[1733190601069,2.2,225.69,225.54,0.02]
[1733190601275,6.64761952,225.68,225.62,6.64761952]
[1733190601576,2.2,225.69,225.51,0.02]
[1733190601577,2.2157,225.63,225.51,0.02]
[1733190601771,2.2,225.62,225.58,6.64761952]
[1733190603068,2.2,225.62,225.5,4.3863417]
[1733190603069,2.2,225.62,225.6,6.64761952]
[1733190603269,2.2,225.63,225.6,6.64761952]
[1733190603669,2.37323,225.69,225.62,6.64761952]
[1733190603870,2.2,225.68,225.66,6.64761952]
[1733190605871,2.2145,225.75,225.66,6.64761952]
[1733190606080,2.2,225.74,225.7,6.64761952]
[1733190606283,2.2,225.74,225.72,6.64761952]
[1733190607069,4.4144,225.76,225.72,6.64761952]
[1733190607277,2.2144,225.76,225.72,6.64761952]
[1733190607474,2.2,225.76,225.72,6.64761952]
[1733190607679,2.2,225.76,225.69,10.36816782]
[1733190608979,4.4145,225.76,225.69,10.36816782]
[1733190611281,2.2,225.76,225.66,10.36816782]
[1733190611882,2.2146,225.74,225.66,10.36816782]
[1733190613680,2.2146,225.74,225.58,0.2176]
[1733190613681,10.36816782,225.74,225.54,2.2]
[1733190613986,10.36816782,225.74,225.6,10.36816782]
[1733190614980,10.36816782,225.71,225.57,10.36816782]
[1733190615187,2.2,225.7,225.57,10.36816782]
[1733190616390,2.2153,225.67,225.57,10.36816782]
[1733190616584,2.2,225.7,225.57,10.36816782]
[1733190616989,2.2154,225.66,225.57,10.36816782]
[1733190617283,2.6753,225.75,225.6,10.36816782]
[1733190617487,2.2,225.74,225.63,10.36816782]
[1733190617681,2.215,225.7,225.63,10.36816782]
[1733190617883,2.2,225.69,225.63,10.36816782]
[1733190618287,2.2,225.7,225.66,10.36816782]
[1733190618494,2.2,225.71,225.66,10.36816782]
[1733190618687,2.2,225.71,225.59,2.2]
[1733190618688,2.6753,225.75,225.6,0.2171]
[1733190618890,2.2,225.72,225.64,10.36816782]
[1733190619891,2.2,225.72,225.61,10.36816782]
[1733190620193,2.2,225.72,225.58,10.36816782]
[1733190620391,2.2155,225.65,225.58,10.36816782]
[1733190620585,4.4155,225.65,225.58,10.36816782]
[1733190620781,2.2,225.65,225.58,10.36816782]
[1733190627693,2.2,225.65,225.63,6.6418004]
[1733190628787,2.2,225.65,225.6,6.6418004]
[1733190629090,2.2,225.65,225.51,0.2177]
[1733190629295,6.6418004,225.64,225.57,6.6418004]
[1733190630193,2.2157,225.62,225.57,6.6418004]
[1733190630596,6.6418004,225.62,225.54,6.6418004]
[1733190630788,2.2161,225.59,225.54,6.6418004]
[1733190630991,2.2,225.58,225.56,6.6418004]
[1733190631696,2.2,225.58,225.44,2.2]
[1733190631697,2.2,225.58,225.53,10.38432984]
[1733190631998,4.4161,225.58,225.53,10.38432984]
[1733190632792,2.2,225.58,225.53,10.38432984]
[1733190634099,4.4161,225.58,225.5,10.38432984]
[1733190635701,2.2,225.58,225.5,10.38432984]
[1733190639101,4.4161,225.58,225.5,10.38432984]
[1733190643812,2.2,225.58,225.39,10.60322984]
[1733190644013,2.2,225.58,225.49,10.38432984]
[1733190644213,2.2,225.58,225.52,10.38432984]
[1733190644613,2.2,225.58,225.52,12.60102984]
[1733190645011,13.08922984,225.66,225.52,10.38432984]
[1733190645306,2.2158,225.62,225.54,2.2165]
[1733190645719,4.4158,225.61,225.54,2.2165]
[1733190645910,2.2,225.6,225.54,2.2165]
[1733190647815,2.7049,225.66,225.58,10.38432984]
[1733190648012,2.2,225.65,225.61,10.38432984]
[1733190650417,2.2151,225.69,225.61,12.60012984]
[1733190650612,1.3847,225.71,225.64,10.38432984]
[1733190650914,2.2,225.7,225.65,2.2154]
[1733190651511,2.2,225.7,225.64,10.38432984]
[1733190651719,2.2,225.7,225.68,6.63865179]
[1733190654320,2.2,225.7,225.66,6.63865179]
[1733190655118,6.63865179,225.67,225.46,1.77429929]
[1733190655322,2.2,225.7,225.46,1.77429929]
[1733190655323,6.63865179,225.65,225.57,6.63865179]
[1733190655520,2.2,225.64,225.57,6.63865179]
[1733190655918,2.2,225.64,225.49,2.19985266]
[1733190656222,2.2,225.63,225.61,6.63865179]
[1733190657526,2.2,225.63,225.59,10.37865758]
[1733190658520,2.2,225.63,225.55,2.2164]
[1733190658725,2.2158,225.62,225.54,10.37865758]
[1733190658924,2.2,225.63,225.48,2.2]
[1733190659126,2.2,225.63,225.58,10.37865758]
[1733190660728,2.2,225.63,225.58,12.59465758]
[1733190661225,1.4118,225.69,225.61,10.37865758]
[1733190661423,2.2,225.68,225.61,10.37865758]
[1733190662028,4.4152,225.68,225.61,10.37865758]
[1733190663130,2.2,225.67,225.61,10.37865758]
[1733190663626,2.2,225.67,225.62,2.2157]
[1733190664229,2.2,225.67,225.61,12.59445758]
[1733190665724,3.5996,225.71,225.61,10.37865758]
[1733190665930,2.2,225.7,225.61,10.37865758]
[1733190666533,2.2146,225.74,225.67,12.59385758]
[1733190666731,2.2,225.74,225.7,10.37865758]
[1733190667030,2.2,225.74,225.7,12.59355758]
[1733190667428,2.2,225.74,225.7,10.37865758]
[1733190667825,2.2,225.74,225.67,10.37865758]
[1733190668128,2.2,225.74,225.64,10.37865758]
[1733190668428,1.3088,225.78,225.7,10.37865758]
[1733190668737,2.2,225.76,225.7,12.59355758]
[1733190669033,2.2,225.76,225.7,10.37865758]
[1733190669326,2.2,225.76,225.7,12.59355758]
[1733190670524,2.2,225.76,225.7,10.37865758]
[1733190671426,2.2141,225.79,225.7,10.37865758]
[1733190671632,2.2141,225.79,225.74,2.2145]
[1733190671633,2.2,225.79,225.74,2.2145]
[1733190672529,2.2,225.79,225.76,10.37865758]
[1733190674132,2.2,225.79,225.73,12.59325758]
[1733190674335,2.2,225.79,225.73,10.37865758]
[1733190675332,2.2,225.79,225.76,10.37865758]
[1733190676127,0.31664,225.86,225.76,10.37865758]
[1733190676322,0.31664,225.86,225.81,10.37865758]
[1733190676524,0.31664,225.86,225.81,12.59245758]
[1733190676525,2.51664,225.86,225.81,12.59245758]
[1733190676730,2.51664,225.86,225.81,10.37865758]
[1733190679137,2.51664,225.86,225.82,2.2138]
[1733190680329,2.51664,225.86,225.84,10.37865758]
[1733190680529,2.51664,225.86,225.85,2.2135]
[1733190680737,0.31664,225.86,225.84,10.37865758]
[1733190682831,0.31664,225.86,225.81,10.37865758]
[1733190683628,0.31664,225.86,225.83,6.6304096]
[1733190685934,0.31664,225.86,225.85,6.6304096]
[1733190687337,0.31664,225.86,225.85,8.8439096]
[1733190687533,0.31664,225.86,225.85,6.6304096]
[1733190689731,2.7244,225.94,225.85,6.6304096]
[1733190689732,2.2,225.91,225.85,6.6304096]
[1733190689940,2.2,225.91,225.9,6.6304096]
[1733190692235,2.2124,225.96,225.9,8.8434096]
[1733190692440,2.2,225.94,225.8,0.2158]
[1733190692938,2.2,225.94,225.88,2.2131]
[1733190693441,2.2,225.94,225.93,6.6304096]
[1733190695333,1.388,226.01,225.93,6.6304096]
[1733190695535,2.2,226.0,225.99,6.6304096]
[1733190699342,2.2,226.0,225.89,2.2]
[1733190699343,2.2,226.0,225.97,6.6304096]
[1733190699539,2.2122,225.98,225.95,6.6304096]
[1733190699739,2.2,226.0,225.95,6.6304096]
[1733190701048,2.2123,225.97,225.95,6.6304096]
[1733190701645,2.2123,225.97,225.91,12.56286941]
[1733190701949,2.2,226.0,225.91,12.56286941]
[1733190702149,2.2122,225.99,225.91,12.56286941]
[1733190702448,2.2,226.0,225.91,12.56286941]
[1733190703041,4.4121,226.0,225.94,10.34996941]
[1733190703441,2.2,226.0,225.94,10.34996941]
[1733190704948,4.412,226.0,225.94,12.56256941]
[1733190705241,2.2,226.0,225.94,10.34996941]
[1733190705648,2.2122,225.98,225.94,10.34996941]
[1733190706854,4.4121,226.0,225.94,10.34996941]
[1733190707048,2.2,226.0,225.94,10.34996941]
[1733190708151,2.2121,225.99,225.94,10.34996941]
[1733190708450,2.2,226.0,225.94,10.34996941]
[1733190709046,2.2123,225.98,225.94,10.34996941]
[1733190709252,2.2,226.0,225.91,10.34996941]
[1733190709558,2.2125,225.95,225.91,10.34996941]
[1733190709855,4.4125,225.95,225.91,10.34996941]
[1733190711946,2.2,225.95,225.91,10.34996941]
[1733190712150,2.2,225.95,225.88,10.34996941]
[1733190712353,1.3894,225.94,225.88,10.34996941]
[1733190712955,2.2128,225.92,225.88,10.34996941]
[1733190713755,1.3894,225.94,225.88,10.34996941]
[1733190714055,1.3894,225.94,225.84,10.34996941]
[1733190714453,2.2134,225.86,225.84,10.34996941]
[1733190714958,2.2135,225.85,225.84,10.34996941]
[1733190715457,2.2,225.87,225.84,10.34996941]
[1733190715650,2.2135,225.85,225.84,10.34996941]
[1733190715856,2.2,225.87,225.81,10.34996941]
[1733190716558,2.2137,225.83,225.81,10.34996941]
[1733190717054,2.2135,225.85,225.81,10.34996941]
[1733190719459,2.2136,225.84,225.81,10.34996941]
[1733190720160,2.2,225.87,225.81,10.34996941]
[1733190721450,2.2138,225.83,225.81,10.34996941]
[1733190723358,2.2138,225.82,225.78,10.34996941]
[1733190723553,2.2,225.82,225.81,6.63219312]
[1733190724267,4.4138,225.82,225.81,6.63219312]
[1733190726258,4.4138,225.82,225.75,2.2144]
[1733190726464,2.2139,225.81,225.75,2.2144]
[1733190727257,2.2139,225.81,225.71,2.2148]
[1733190727463,2.2139,225.81,225.8,6.63219312]
[1733190728765,2.2,225.82,225.66,16.90250119]
[1733190728965,2.2,225.82,225.77,6.63219312]
[1733190729464,2.2,225.82,225.79,6.63219312]
[1733190729660,2.214,225.8,225.79,6.63219312]
[1733190734464,8.83219312,226.02,225.89,1e-08]
[1733190734666,2.2,226.02,225.94,6.63219312]
[1733190734869,8.83219312,226.02,225.94,6.63219312]
[1733190735069,6.63219312,226.0,225.92,6.63219312]
[1733190735768,2.2,226.02,225.89,10.35213916]
[1733190736568,2.2128,225.92,225.89,10.35213916]
[1733190736769,2.2,225.91,225.89,10.35213916]
[1733190739269,2.2,225.91,225.89,1e-08]
[1733190739866,2.213,225.9,225.89,1e-08]
[1733190744471,6.2039,225.9,225.89,1e-08]
[1733190748779,6.2039,225.9,225.7,2.2149]
[1733190748780,2.2145,225.75,225.7,2.2149]
[1733190748973,2.2,225.76,225.73,10.35213915]
[1733190749173,2.2,225.77,225.73,10.35213915]
[1733190749374,4.4144,225.77,225.73,10.35213915]
[1733190749673,2.2,225.77,225.73,10.35213915]
[1733190750073,2.2144,225.76,225.73,10.35213915]
[1733190750473,2.2,225.77,225.73,10.35213915]
[1733190750774,2.2145,225.75,225.73,10.35213915]
[1733190751078,2.2,225.77,225.73,10.35213915]
[1733190751778,2.2146,225.74,225.73,10.35213915]
[1733190754472,2.2,225.77,225.7,10.35213915]
[1733190754674,2.2149,225.71,225.7,10.35213915]
[1733190755474,2.2,225.72,225.67,10.35213915]
[1733190755678,2.2151,225.68,225.61,10.35213915]
[1733190756381,2.2151,225.68,225.61,12.56793915]
[1733190757183,2.2151,225.69,225.67,6.63789655]
[1733190757478,2.2151,225.69,225.68,6.63789655]
[1733190760177,2.2,225.7,225.68,6.63789655]
[1733190761584,4.415,225.7,225.68,6.63789655]
[1733190762084,2.2,225.7,225.68,6.63789655]
[1733190763089,2.215,225.69,225.68,6.63789655]
[1733190764182,2.2,225.7,225.68,6.63789655]
[1733190766792,4.415,225.7,225.68,6.63789655]
[1733190767788,2.2,225.7,225.68,6.63789655]
[1733190777289,4.415,225.7,225.68,6.63789655]
[1733190777492,2.2,225.7,225.68,6.63789655]
[1733190778195,2.215,225.69,225.68,6.63789655]
[1733190779198,4.415,225.7,225.68,6.63789655]
[1733190781390,2.215,225.69,225.68,6.63789655]
[1733190781596,2.2,225.7,225.54,2.25087249]
[1733190781800,2.2,225.7,225.55,4.80179695]
[1733190782003,2.2,225.7,225.52,0.2177]
[1733190782004,2.2,225.7,225.52,2.43671853]
[1733190782197,2.2,225.7,225.53,8.77760566]
[1733190782394,3.4726,225.7,225.64,6.63789655]
[1733190782598,2.2154,225.65,225.64,6.63789655]
[1733190782805,4.4154,225.65,225.64,6.63789655]
[1733190783507,2.2157,225.63,225.62,6.63789655]
[1733190783806,2.2,225.65,225.61,6.63789655]
[1733190784803,2.2,225.65,225.63,6.63789655]
[1733190785000,2.2156,225.64,225.63,6.63789655]
[1733190787306,2.2,225.65,225.63,6.63789655]
[1733190790008,2.2155,225.64,225.63,6.63789655]
[1733190790911,2.5938,225.7,225.63,6.63789655]
[1733190791108,6.63789655,225.77,225.69,6.63789655]
[1733190791314,2.2,225.76,225.71,6.63789655]
[1733190793012,2.2148,225.72,225.71,6.63789655]
[1733190794211,3.9541,225.79,225.71,6.63789655]
[1733190794417,2.2147,225.73,225.71,6.63789655]
[1733190794712,4.4147,225.73,225.71,6.63789655]
[1733190795715,2.2148,225.72,225.71,6.63789655]
[1733190796320,2.2148,225.72,225.69,6.63789655]
[1733190797417,2.2148,225.72,225.71,6.63789655]
[1733190798214,2.2145,225.75,225.71,6.63789655]
[1733190798414,2.2,225.76,225.73,6.63789655]
[1733190798716,2.2,225.76,225.75,6.63789655]
[1733190799218,4.4144,225.76,225.75,6.63789655]
[1733190804623,3.9541,225.79,225.75,6.63789655]
[1733190804825,7.0422,225.79,225.77,6.63789655]
[1733190805022,4.8422,225.79,225.77,6.63789655]
[1733190805731,2.2,225.8,225.77,6.63789655]
[1733190806029,2.2,225.8,225.79,6.63789655]
[1733190807029,4.414,225.8,225.79,6.63789655]
[1733190807232,4.414,225.8,225.77,6.63789655]
[1733190808032,2.2141,225.79,225.77,6.63789655]
[1733190809133,2.2,225.8,225.77,6.63789655]
[1733190810033,2.2,225.8,225.59,0.2185]
[1733190810034,6.63789655,225.79,225.6,3.69602677]
[1733190810333,6.63789655,225.77,225.71,6.63789655]
[1733190810534,2.2145,225.75,225.71,6.63789655]
[1733190810731,2.2,225.74,225.71,6.63789655]
[1733190811333,2.2,225.74,225.73,6.63789655]
[1733190812229,2.2,225.77,225.73,6.63789655]
[1733190812431,2.2,225.79,225.77,6.63789655]
[1733190814729,2.214,225.8,225.77,6.63789655]
[1733190814932,4.414,225.8,225.77,6.63789655]
[1733190815228,2.2,225.8,225.75,6.63789655]
[1733190815424,2.2,225.8,225.72,6.63789655]
[1733190815425,8.83789655,225.8,225.72,6.63789655]
[1733190815625,6.63789655,225.78,225.71,6.63789655]
[1733190815830,2.2145,225.75,225.71,6.63789655]
[1733190816030,4.4145,225.75,225.71,6.63789655]
[1733190816229,6.63789655,225.73,225.55,16.95295174]
[1733190816425,2.2149,225.71,225.65,6.63789655]
[1733190816633,2.2,225.7,225.65,6.63789655]
[1733190817230,2.2151,225.69,225.65,6.63789655]
[1733190817633,2.2151,225.69,225.62,12.59090906]
[1733190817834,2.2151,225.69,225.62,10.37520906]
[1733190818033,2.2151,225.69,225.63,2.2156]
[1733190818938,2.2151,225.69,225.62,10.37520906]
[1733190819133,2.2151,225.69,225.62,12.59090906]
[1733190821930,2.2153,225.66,225.62,10.37520906]
[1733190822132,2.2,225.65,225.6,2.2159]
[1733190822333,2.2,225.65,225.59,10.37520906]
[1733190822639,2.2156,225.64,225.59,10.37520906]
[1733190822836,2.2156,225.64,225.56,10.37520906]
[1733190823039,2.2156,225.64,225.57,2.2161]
[1733190824340,2.2156,225.64,225.58,2.2161]
[1733190824527,2.2,225.65,225.58,2.2161]
[1733190824729,2.2,225.65,225.56,10.37520906]
[1733190825129,2.2,225.65,225.55,16.95295174]
[1733190825349,2.2156,225.63,225.56,10.37520906]
[1733190825637,2.2156,225.63,225.56,12.59150906]
[1733190825832,2.2,225.65,225.52,0.18577]
[1733190826237,2.2,225.65,225.53,10.37520906]
[1733190827639,2.2,225.65,225.52,2.40247]
[1733190827841,2.2161,225.59,225.53,2.2166]
[1733190828040,2.2,225.58,225.53,2.2166]
[1733190829234,2.2,225.58,225.52,2.40247]
[1733190829442,4.4162,225.58,225.52,0.18577]
[1733190830434,2.2,225.58,225.52,0.18577]
[1733190830934,2.2,225.58,225.54,10.37520906]
[1733190833041,4.4162,225.58,225.54,10.37520906]
[1733190833437,4.4162,225.58,225.52,0.18577]
[1733190833839,375.5983934,226.02,225.57,20.75041812]
[1733190834034,375.5983934,226.02,225.68,10.37520906]
[1733190834035,10.37520906,225.82,225.68,10.37520906]
[1733190834233,2.7115,225.76,225.68,10.37520906]
[1733190834445,2.2,225.75,225.68,10.37520906]
[1733190834645,2.2146,225.74,225.68,10.37520906]
[1733190834940,2.2,225.75,225.65,10.37520906]
[1733190835449,2.2,225.75,225.65,12.59060906]
[1733190836938,2.2147,225.73,225.65,12.59060906]
[1733190837442,2.2147,225.73,225.65,10.37520906]
[1733190837641,2.2147,225.73,225.66,2.2153]
[1733190838035,2.2147,225.73,225.68,10.37520906]
[1733190843544,2.2146,225.74,225.68,10.37520906]
[1733190845642,6.63705438,225.74,225.53,0.1202]
[1733190845845,6.63705438,225.71,225.65,6.63705438]
[1733190846043,2.2,225.7,225.65,6.63705438]
[1733190846347,2.2,225.7,225.53,0.1202]
[1733190846543,2.2,225.7,225.64,6.63705438]
[1733190847347,2.2152,225.68,225.64,6.63705438]
[1733190847543,2.2152,225.68,225.62,2.2157]
[1733190849046,4.9951,225.67,225.61,12.59215125]
[1733190849244,4.9951,225.67,225.61,10.37635125]
[1733190849245,2.7798,225.67,225.61,10.37635125]
[1733190849546,2.7798,225.67,225.58,10.37635125]
[1733190849846,2.2156,225.64,225.59,2.216]
[1733190850047,2.2,225.63,225.59,2.216]
[1733190856150,2.2,225.63,225.58,12.59245125]
[1733190857050,2.2,225.63,225.59,2.216]
[1733190859050,2.2,225.64,225.61,10.37635125]
[1733190859656,2.2,225.64,225.59,2.2159]
[1733190859846,2.2,225.64,225.54,10.37635125]
[1733190860155,2.2,225.64,225.51,10.37635125]
[1733190860352,2.2162,225.58,225.51,12.59305125]
[1733190860656,2.2,225.57,225.51,12.59305125]
[1733190861154,2.2,225.57,225.51,12.84072125]
[1733190861355,2.2,225.57,225.51,10.62402125]
[1733190861556,2.2,225.57,225.52,2.2167]
[1733190863360,4.4163,225.57,225.51,2.46447]
[1733190864863,2.2164,225.55,225.51,0.24767]
[1733190865358,12.57635125,225.57,225.51,0.24767]
[1733190865563,2.2166,225.54,225.51,0.24767]
[1733190866266,2.2164,225.55,225.51,0.24767]
[1733190866763,12.57635125,225.57,225.51,0.24767]
[1733190867466,2.2166,225.54,225.51,0.24767]
[1733190868363,12.57635125,225.57,225.51,0.24767]
[1733190868663,2.2167,225.52,225.51,0.24767]
[1733190868860,4.4167,225.52,225.51,0.24767]
[1733190871167,11.06750262,225.52,225.51,0.24767]
[1733190874072,11.06750262,225.52,225.47,2.2172]
[1733190874275,2.2168,225.51,225.47,2.2172]
[1733190874472,2.2168,225.51,225.46,8.86810262]
[1733190875668,2.2168,225.51,225.46,6.65080262]
[1733190876073,2.2,225.52,225.46,6.65080262]
[1733190876874,2.2168,225.51,225.46,6.65080262]
[1733190877474,2.217,225.5,225.46,6.65080262]
[1733190877673,8.85080262,225.52,225.46,6.65080262]
[1733190877873,6.65080262,225.5,225.44,6.65080262]
[1733190878478,2.2172,225.48,225.44,6.65080262]
[1733190878676,2.2,225.47,225.44,6.65080262]
[1733190879979,4.4172,225.47,225.42,6.65080262]
[1733190880576,2.2173,225.46,225.42,6.65080262]
[1733190884677,4.4172,225.47,225.42,6.65080262]
[1733190888179,2.2173,225.46,225.42,6.65080262]
[1733190889376,2.2,225.47,225.42,6.65080262]
[1733190889685,2.2175,225.45,225.42,6.65080262]
[1733190889883,2.2,225.47,225.42,6.65080262]
[1733190890378,2.2,225.47,225.44,6.65080262]
[1733190890579,2.2,225.47,225.46,6.65080262]
[1733190895989,2.2,225.47,225.44,8.86830262]
[1733190896188,4.4173,225.47,225.44,6.65080262]
[1733190896489,4.4173,225.47,225.42,6.65080262]
[1733190896880,2.2173,225.46,225.42,6.65080262]
[1733190897285,2.2,225.47,225.33,2.2]
[1733190897485,2.2176,225.44,225.38,6.65080262]
[1733190897693,6.65080262,225.44,225.38,6.65080262]
[1733190898190,2.2176,225.43,225.38,8.86890262]
[1733190898391,2.2,225.42,225.38,8.86890262]
[1733190898790,2.2,225.42,225.36,7.22886262]
[1733190898989,11.06850262,225.42,225.36,7.22886262]
[1733190899988,6.65080262,225.4,225.36,0.57806]
[1733190900186,6.65080262,225.38,225.36,0.57806]
[1733190900389,2.2,225.37,225.36,0.57806]
[1733190900986,2.2,225.37,225.22,2.19162552]
[1733190900987,2.2,225.37,225.22,2.2]
[1733190901189,6.65080262,225.36,225.29,6.65080262]
[1733190901386,6.65080262,225.34,225.2,0.02]
[1733190901588,6.65080262,225.32,225.21,12.500998]
[1733190901891,6.65080262,225.32,225.26,6.65080262]
[1733190901892,2.2,225.31,225.26,6.65080262]
[1733190902397,2.2,225.31,225.27,2.2192]
[1733190902695,2.2,225.31,225.24,6.65080262]
[1733190902896,2.2,225.31,225.25,3.32991842]
[1733190903195,6.65080262,225.3,225.26,1.11061598]
[1733190903397,6.65080262,225.28,225.22,8.87040262]
[1733190903591,6.65080262,225.28,225.23,4.80811016]
[1733190903793,6.65080262,225.28,225.24,1.11063634]
[1733190903996,6.65080262,225.28,225.21,2.2198]
[1733190904193,6.65080262,225.26,225.22,6.5851209]
[1733190904390,6.65080262,225.24,225.23,1.1106333]
[1733190904997,6.65080262,225.24,225.18,6.65080262]
[1733190905194,6.65080262,225.24,225.19,1.1108814]
[1733190905492,6.65080262,225.24,225.18,8.87080262]
[1733190905793,6.65080262,225.24,225.19,1.11090035]
[1733190905996,6.65080262,225.24,225.18,6.65080262]
[1733190906191,6.65080262,225.22,225.19,1.11090473]
[1733190906396,6.65080262,225.2,225.14,6.65080262]
[1733190906694,6.65080262,225.2,224.99,6.6657]
[1733190906695,6.65080262,225.16,225.15,4.28328218]
[1733190906896,8.85080262,225.16,225.05,0.02]
[1733190907097,6.65080262,225.09,225.06,5.472833]
[1733190907289,2.2,225.08,225.07,5.472833]
[1733190907492,2.2,225.08,225.07,3.69467546]
[1733190907698,2.2,225.08,225.0,2.2218]
[1733190907897,10.43456259,225.1,225.01,20.97186819]
[1733190908196,2.2,225.09,225.02,20.96041832]
[1733190908498,2.2,225.09,225.03,13.59336742]
[1733190908696,2.2,225.09,225.0,2.2218]
[1733190908897,2.2,225.09,225.01,5.46312925]
[1733190909200,2.2,225.09,224.97,10.43456259]
[1733190909201,2.2211,225.08,225.02,3.68440854]
[1733190909499,2.2211,225.08,225.03,5.46313354]
[1733190909699,2.2211,225.08,225.04,5.45745412]
[1733190909900,2.2211,225.08,225.05,3.67872912]
[1733190910100,2.2211,225.08,224.99,2.2219]
[1733190910296,2.2211,225.08,225.0,20.90188233]
[1733190910498,2.2211,225.08,225.01,20.90188233]
[1733190910705,2.2211,225.08,225.02,13.55415593]
[1733190911004,2.2211,225.08,225.03,11.33076059]
[1733190911204,2.2211,225.08,225.04,11.32410225]
[1733190911407,2.2211,225.08,225.05,5.45257947]
[1733190911701,2.2211,225.08,225.0,2.2218]
[1733190911702,2.2211,225.08,225.06,3.6738632]
[1733190911904,2.2211,225.08,224.99,0.02]
[1733190911905,2.2212,225.07,224.99,2.2419]
[1733190912105,2.2212,225.07,225.0,20.88248611]
[1733190912402,2.2212,225.07,224.99,2.2419]
[1733190912403,2.2212,225.07,225.01,13.54321669]
[1733190912596,2.2212,225.07,225.02,1.77874064]
[1733190912797,2.2212,225.07,225.03,5.44554385]
[1733190912996,2.2214,225.05,224.97,2.2221]
[1733190913201,2.2,225.04,224.98,13.53617594]
[1733190913396,12.63456259,225.04,224.99,13.53617594]
[1733190913605,12.63456259,225.04,225.0,5.44572333]
[1733190913805,2.2217,225.02,224.95,0.02]
[1733190914004,2.2217,225.02,224.96,13.52576226]
[1733190914308,12.63456259,225.04,224.97,13.52576226]
[1733190914499,12.63456259,225.04,224.98,13.52576226]
[1733190914702,2.2219,225.0,224.99,5.44174303]
[1733190915208,2.2219,225.0,224.91,6.59662997]
[1733190915209,2.2221,224.98,224.95,0.02]
[1733190915401,2.2,224.97,224.96,8.06997475]
[1733190915599,12.65666259,224.98,224.96,5.84564804]
[1733190915799,12.65666259,224.98,224.9,2.2228]
[1733190915800,2.2,224.97,224.9,2.2228]
[1733190916000,10.43456259,224.92,224.91,2.22500859]
[1733190916204,12.63456259,224.92,224.91,2.22512264]
[1733190916404,14.85726259,224.92,224.87,1.05576]
[1733190916604,14.85726259,224.92,224.87,1.03576]
[1733190916605,12.63456259,224.92,224.87,1.03576]
[1733190916803,10.43456259,224.89,224.87,1.03576]
[1733190917003,12.65756259,224.89,224.87,1.03576]
[1733190917199,10.43456259,224.89,224.78,4.36009412]
[1733190917399,10.43456259,224.85,224.79,12.90916461]
[1733190917600,10.43456259,224.85,224.8,12.90916461]
[1733190917601,12.65786259,224.85,224.8,12.90916461]
[1733190917803,2.2,224.84,224.74,4.36009412]
[1733190918005,2.2,224.84,224.75,12.91149609]
[1733190918202,2.2,224.84,224.76,12.91149609]
[1733190918400,2.2,224.84,224.77,12.91149609]
[1733190918605,2.2,224.84,224.74,2.2243]
[1733190918606,10.43456259,224.85,224.78,5.73844271]
[1733190918805,2.2,224.83,224.79,5.73844271]
[1733190919003,2.2,224.83,224.74,6.58439412]
[1733190919305,2.2234,224.84,224.75,12.87408048]
[1733190919503,2.2,224.83,224.76,5.72724356]
[1733190919806,2.2,224.82,224.77,5.72724356]
[1733190920017,2.2,224.82,224.72,17.37445671]
[1733190920198,2.2,224.82,224.73,20.56302381]
[1733190920400,2.2,224.82,224.74,16.20082018]
[1733190920598,2.2,224.82,224.75,13.97642018]
[1733190920799,2.2,224.82,224.76,6.8302245]
[1733190921003,2.2,224.81,224.77,5.71695655]
[1733190921199,2.2,224.81,224.72,13.01436259]
[1733190921401,2.2,224.81,224.73,13.9380566]
[1733190921706,2.2,224.8,224.74,13.9380566]